bitfinex/quotes_ETHUSD_20240902
["timestamp","ask_amount","ask_price","bid_price","bid_amount"]
[1725286704340,7.9904,2503.0,2502.9,3.0]
[1725286704679,7.99072,2502.9,2502.8,19.79]
[1725286704892,3.9956,2502.8,2502.5,23.78]
[1725286705052,3.9956,2502.8,2502.6,4.0]
[1725286705389,3.9956,2502.8,2502.5,23.78]
[1725286705592,3.99568,2502.7,2502.5,23.78]
[1725286705741,3.99568,2502.7,2502.6,3.0]
[1725286706091,7.99136,2502.7,2502.6,3.0]
[1725286706392,3.99568,2502.7,2502.6,3.0]
[1725286706692,3.9949,2503.2,2502.7,2.0]
[1725286706845,3.99506,2503.1,2502.7,2.0]
[1725286707042,3.99561,2502.8,2502.6,3.0]
[1725286707451,3.99568,2502.7,2502.6,3.0]
[1725286707650,3.99561,2502.8,2502.6,3.0]
[1725286707889,3.99568,2502.7,2502.6,3.0]
[1725286708041,3.99548,2502.9,2502.6,3.0]
[1725286708245,3.99558,2502.8,2502.6,3.0]
[1725286708445,3.99568,2502.7,2502.6,3.0]
[1725286708682,3.99552,2502.8,2502.6,3.0]
[1725286709045,3.99548,2502.9,2502.6,3.0]
[1725286709246,3.99459,2503.4,2502.8,2.3421]
[1725286709247,4.08459214,2503.3,2502.8,2.3421]
[1725286709480,3.99457,2503.4,2503.0,2.0]
[1725286709682,3.99457,2503.4,2503.1,0.07989099]
[1725286710307,7.98867,2503.6,2503.1,0.07989099]
[1725286710594,0.08974214,2503.5,2503.1,19.79]
[1725286710902,9.31882942,2504.0,2503.1,19.79]
[1725286710903,3.99488,2503.2,2503.1,19.79]
[1725286711047,3.99488,2503.2,2503.1,22.79]
[1725286711480,7.98955,2503.3,2503.1,22.79]
[1725286711748,3.99473,2503.3,2503.2,3.0]
[1725286712183,3.99444,2503.5,2503.2,3.0]
[1725286712376,3.99444,2503.5,2503.2,5.35888665]
[1725286712688,3.99438,2503.6,2503.2,5.279]
[1725286712986,3.99458,2503.4,2503.2,3.0]
[1725286713193,7.98873,2503.6,2503.3,2.498]
[1725286713417,2.4658,2504.2,2503.1,23.78493]
[1725286713418,3.99488,2503.2,2503.1,19.79]
[1725286713564,3.99536,2503.0,2502.6,2.3883]
[1725286713763,3.99536,2503.0,2502.7,4.0]
[1725286713764,3.99562,2502.8,2502.7,4.0]
[1725286714094,3.99537,2502.9,2502.7,4.0]
[1725286714251,7.99084,2502.9,2502.7,4.0]
[1725286714615,3.99537,2502.9,2502.6,2.3883]
[1725286714884,3.99521,2503.0,2502.6,4.366745]
[1725286715096,3.99521,2503.0,2502.7,3.0]
[1725286715453,3.9951,2503.1,2502.7,3.0]
[1725286715792,7.99028,2503.1,2502.7,3.0]
[1725286715989,3.9951,2503.1,2502.7,3.0]
[1725286716543,0.08974214,2503.2,2502.7,3.0]
[1725286716745,2.3374,2503.2,2502.4,7.41]
[1725286716949,3.99568,2502.7,2502.4,7.41]
[1725286717423,3.99596,2502.6,2502.2,19.79]
[1725286717576,3.99619,2502.4,2502.2,19.79]
[1725286717776,3.99619,2502.4,2502.1,19.79]
[1725286718210,3.99619,2502.4,2502.2,3.0]
[1725286718404,3.99554,2502.8,2502.2,9.07629989]
[1725286718576,3.99554,2502.8,2502.3,0.07991435]
[1725286718776,3.99554,2502.8,2502.4,2.3477]
[1725286718981,3.99554,2502.8,2502.4,5.3477]
[1725286719222,3.99528,2503.0,2502.5,2.0]
[1725286719397,3.99528,2503.0,2502.6,0.74178093]
[1725286719715,3.99555,2502.8,2502.6,3.0]
[1725286720079,3.99465,2503.4,2502.8,2.3477]
[1725286720316,1.23849674,2504.5,2503.2,2.3477]
[1725286720317,3.99437,2503.6,2503.2,2.3477]
[1725286720467,4.08370214,2503.8,2503.3,0.07988379]
[1725286720468,3.9942,2503.7,2503.3,0.07988379]
[1725286720667,3.9945,2503.5,2503.3,3.04827981]
[1725286721269,3.99456,2503.4,2503.3,3.04827981]
[1725286722675,7.98912,2503.4,2503.3,3.04827981]
[1725286725689,3.9945,2503.5,2503.3,0.04827981]
[1725286726081,3.9945,2503.5,2503.1,2.0]
[1725286726289,3.99417,2503.7,2503.4,0.04804642]
[1725286726627,3.99427,2503.6,2503.5,0.04803547]
[1725286726835,3.99358,2504.1,2503.5,4.12218832]
[1725286726977,3.99358,2504.1,2503.6,6.74205883]
[1725286727176,3.99358,2504.1,2503.7,3.04801356]
[1725286727611,3.9933,2504.2,2503.7,3.04801356]
[1725286727612,3.9933,2504.2,2503.7,7.04209356]
[1725286727819,3.99321,2504.3,2503.8,5.9939]
[1725286727991,3.99321,2504.3,2503.9,5.3356]
[1725286728190,3.99321,2504.3,2504.0,0.0479807]
[1725286728620,3.9933,2504.2,2504.0,0.0479807]
[1725286728984,3.99268,2504.6,2504.0,0.0479807]
[1725286728985,3.99345,2504.1,2504.0,0.0479807]
[1725286729419,3.99321,2504.3,2504.0,0.0479807]
[1725286729614,3.9933,2504.2,2504.0,0.0479807]
[1725286729829,3.99345,2504.1,2504.0,0.0479807]
[1725286730177,3.99345,2504.1,2503.8,5.0]
[1725286730413,3.99345,2504.1,2503.9,0.04799165]
[1725286730989,3.9933,2504.2,2503.9,0.04799165]
[1725286732298,7.98615,2504.4,2503.9,1.58562182]
[1725286732499,7.98614,2504.4,2503.9,4.58562182]
[1725286732710,0.08974214,2504.6,2503.9,4.58562182]
[1725286732711,3.99275,2504.6,2504.3,2.0]
[1725286732924,3.99257,2504.7,2504.3,2.0]
[1725286733143,3.99257,2504.7,2504.4,0.04736194]
[1725286733627,3.99269,2504.6,2504.4,0.04736194]
[1725286734301,3.99234,2504.8,2504.5,2.2638]
[1725286734501,3.99234,2504.8,2504.5,5.2638]
[1725286734822,3.99234,2504.8,2504.6,0.04734004]
[1725286735026,3.99249,2504.7,2504.6,0.04734004]
[1725286735994,7.98498,2504.7,2504.6,0.04734004]
[1725286736242,3.99249,2504.7,2504.6,0.04734004]
[1725286736668,7.98498,2504.7,2504.6,0.04734004]
[1725286737284,9.50166714,2504.7,2504.6,0.04734004]
[1725286737494,13.49415714,2504.7,2504.6,0.04734004]
[1725286738081,3.99361,2504.0,2503.9,19.79]
[1725286738288,3.99338,2504.2,2503.9,19.79]
[1725286738436,3.99353,2504.1,2503.9,21.769]
[1725286738941,3.99353,2504.1,2503.9,19.79]
[1725286739279,0.08974214,2504.2,2503.9,19.79]
[1725286739280,7.98722,2504.0,2503.9,19.79]
[1725286739478,7.98722,2504.0,2503.9,3.0]
[1725286739785,3.99384,2503.9,2503.7,3.0]
[1725286740080,3.99361,2504.0,2503.7,3.0]
[1725286740081,3.99392,2503.8,2503.7,3.0]
[1725286740944,8.07758214,2503.8,2503.7,3.0]
[1725286741663,8.07758214,2503.8,2503.5,19.79]
[1725286741664,7.98816,2503.7,2503.6,3.0]
[1725286742298,8.07790214,2503.7,2503.6,3.0]
[1725286742459,14.53328214,2503.7,2503.6,3.0]
[1725286742670,8.21664432,2503.7,2502.9,39.55]
[1725286742984,3.99466,2503.4,2502.9,27.2]
[1725286743153,3.99466,2503.4,2502.9,29.88876803]
[1725286743352,3.9949,2503.2,2502.9,29.88876803]
[1725286743541,3.99516,2503.1,2502.9,29.88876803]
[1725286743740,3.9952,2503.0,2502.9,19.79]
[1725286743942,3.9952,2503.0,2502.9,22.79]
[1725286744395,7.99033,2503.1,2502.9,22.79]
[1725286744604,3.99516,2503.1,2503.0,3.0]
[1725286744743,3.9948,2503.3,2503.0,5.279]
[1725286744947,4.08425214,2503.5,2503.0,2.4427]
[1725286744948,3.9945,2503.5,2503.0,2.4427]
[1725286745142,7.989,2503.5,2503.0,9.43788]
[1725286745359,7.989,2503.5,2503.1,1.143788]
[1725286745649,7.989,2503.5,2503.1,4.143788]
[1725286745650,3.9945,2503.5,2503.1,4.143788]
[1725286745861,0.08974214,2503.9,2503.2,2.07005782]
[1725286746063,5.32518942,2504.2,2503.5,2.484]
[1725286746064,3.99369,2504.0,2503.5,2.484]
[1725286746350,3.99424,2503.6,2503.5,3.0]
[1725286746566,3.99424,2503.6,2503.4,3.0]
[1725286746774,3.99424,2503.6,2503.3,3.0]
[1725286747095,3.99498,2503.2,2502.8,2.0]
[1725286747244,0.08974214,2503.4,2502.6,2.484]
[1725286747468,3.99564,2502.8,2502.6,2.484]
[1725286748904,3.99564,2502.8,2502.6,5.484]
[1725286749575,3.99563,2502.8,2502.6,5.484]
[1725286750105,4.08505214,2503.0,2502.7,0.04807714]
[1725286750417,3.99546,2502.9,2502.7,4.20028485]
[1725286750570,3.99531,2503.0,2502.7,4.20028485]
[1725286750571,8.08037214,2503.0,2502.7,4.20028485]
[1725286750767,3.99552,2502.8,2502.7,0.04807714]
[1725286751009,3.99777,2501.4,2501.1,2.4498]
[1725286751229,2.4166,2502.1,2501.6,2.0]
[1725286751365,3.99672,2502.1,2501.7,2.52973426]
[1725286751570,3.99672,2502.1,2501.7,2.49355564]
[1725286751766,3.99641,2502.3,2501.8,0.07993426]
[1725286751970,3.9969,2502.0,2501.9,0.04215962]
[1725286752273,3.9969,2502.0,2501.8,3.0]
[1725286752467,3.99673,2502.1,2501.9,0.04247429]
[1725286752784,3.99673,2502.1,2501.7,5.52973427]
[1725286752989,3.99697,2501.9,2501.8,0.04248527]
[1725286753318,3.99674,2502.1,2501.7,5.52973684]
[1725286753615,3.99674,2502.1,2501.8,0.04256203]
[1725286753797,3.99673,2502.1,2501.7,6.27471684]
[1725286754005,0.08974214,2502.0,2501.7,3.0]
[1725286754314,0.08974214,2502.0,2501.3,3.99783]
[1725286754315,3.99694,2502.0,2501.8,0.04256203]
[1725286754469,3.99696,2501.9,2501.8,0.04256203]
[1725286754665,3.99696,2501.9,2501.5,2.0]
[1725286754913,3.99694,2502.0,2501.8,0.03976525]
[1725286755252,3.99664,2502.1,2501.9,0.03840304]
[1725286755545,2.275,2502.6,2501.9,0.03840304]
[1725286755546,3.9964,2502.3,2501.9,0.03840304]
[1725286755743,3.99665,2502.1,2501.7,0.55]
[1725286755903,3.99665,2502.1,2502.0,0.03710316]
[1725286756105,3.9964,2502.3,2501.8,5.99712]
[1725286756357,7.99281,2502.3,2502.0,0.03710316]
[1725286756641,3.9964,2502.3,2502.1,0.0370922]
[1725286756843,3.99648,2502.2,2501.8,5.0]
[1725286757055,3.99692,2502.0,2501.8,3.0]
[1725286757205,3.99681,2502.0,2501.5,5.0]
[1725286757405,3.99681,2502.0,2501.5,5.72606]
[1725286758044,7.99376,2502.0,2501.5,5.72606]
[1725286758211,3.99681,2502.0,2501.5,5.72606]
[1725286758413,3.99681,2502.0,2501.6,0.03713169]
[1725286758708,2.4054,2501.8,2501.6,0.03713169]
[1725286758914,16.07886214,2501.7,2501.6,0.03713169]
[1725286759144,3.99794,2501.3,2500.6,2.3114]
[1725286759308,3.9991,2500.6,2500.4,2.06965703]
[1725286759504,7.99823,2500.6,2500.4,21.85965703]
[1725286759709,3.9991,2500.6,2500.4,21.85965703]
[1725286760247,3.9991,2500.6,2500.5,3.0]
[1725286760446,3.9991,2500.6,2500.4,21.85965703]
[1725286760447,7.9984,2500.5,2500.4,0.06965703]
[1725286760751,3.99986,2500.1,2499.9,2.0]
[1725286760959,3.99952,2500.3,2499.9,2.0]
[1725286761102,3.99952,2500.3,2499.9,2.600047]
[1725286761303,7.99919,2500.3,2499.9,2.600047]
[1725286761617,3.99952,2500.3,2499.9,2.600047]
[1725286761921,3.99971,2500.2,2499.9,2.600047]
[1725286762123,3.99971,2500.2,2499.9,2.0]
[1725286762542,3.99971,2500.2,2499.6,2.0]
[1725286762543,4.00024,2499.9,2499.6,2.0]
[1725286763026,4.00056,2499.7,2499.5,0.06967011]
[1725286763621,4.00064,2499.6,2499.5,0.06967011]
[1725286763829,4.0008,2499.5,2499.3,2.0]
[1725286764065,4.00027,2499.9,2499.4,0.08001473]
[1725286764275,4.00001,2500.0,2499.5,4.00079]
[1725286764567,4.00004,2500.0,2499.6,0.08000299]
[1725286764721,4.00004,2500.0,2499.6,3.08000299]
[1725286764926,3.99954,2500.3,2499.8,4.00026]
[1725286765165,3.99954,2500.3,2499.9,3.07999407]
[1725286765352,3.99954,2500.3,2499.9,0.07999407]
[1725286765672,3.99954,2500.3,2499.8,3.0]
[1725286765673,3.99968,2500.2,2499.8,3.0]
[1725286765839,2.43074214,2500.2,2499.3,2.0]
[1725286766041,4.00025,2499.9,2499.3,6.00109]
[1725286766254,8.00022,2500.0,2499.4,0.08000567]
[1725286766437,8.00022,2500.0,2499.4,4.08093567]
[1725286766768,3.99976,2500.2,2499.5,6.50038561]
[1725286767139,0.08974214,2500.5,2499.5,6.50038561]
[1725286767140,3.99945,2500.4,2499.7,2.0]
[1725286767340,0.08974214,2500.5,2500.0,3.99998]
[1725286767655,3.99938,2500.4,2500.1,3.0]
[1725286767857,3.99938,2500.4,2499.9,3.0]
[1725286768370,3.99938,2500.4,2499.9,3.9600275]
[1725286768674,4.08887214,2500.6,2499.9,7.9601575]
[1725286768675,8.08806214,2500.6,2499.9,7.9601575]
[1725286768831,3.99921,2500.5,2499.9,7.9601575]
[1725286769275,3.99936,2500.4,2499.9,3.9600275]
[1725286769763,3.99936,2500.4,2500.0,0.07999]
[1725286770373,3.99936,2500.4,2499.9,3.9600275]
[1725286770534,0.08974214,2500.5,2499.9,3.07999002]
[1725286770535,3.99961,2500.3,2499.9,3.07999002]
[1725286770722,7.99852,2500.5,2499.9,3.07999002]
[1725286770941,3.99922,2500.5,2499.9,7.08012002]
[1725286771374,0.94141516,2500.5,2499.9,3.0]
[1725286771555,4.08918214,2500.4,2499.8,4.00023]
[1725286771744,4.08918214,2500.4,2499.9,7.00015]
[1725286771929,4.08918214,2500.4,2499.9,7.08014349]
[1725286772369,0.08974214,2500.4,2499.9,7.08014349]
[1725286772586,3.99851,2501.0,2500.2,2.4008]
[1725286772783,5.32518942,2501.6,2500.7,2.0]
[1725286772784,0.08974214,2501.3,2500.7,2.0]
[1725286772985,3.99808,2501.2,2500.7,2.0]
[1725286773275,3.99808,2501.2,2500.7,5.0]
[1725286773632,3.99867,2500.9,2500.7,2.95]
[1725286773835,3.9984,2501.0,2500.5,3.0]
[1725286774086,4.08799214,2501.1,2500.5,6.99919]
[1725286774376,4.08799214,2501.1,2500.5,6.6236442]
[1725286774377,3.99857,2500.9,2500.5,6.6236442]
[1725286774586,0.08974214,2500.9,2500.5,3.0]
[1725286774741,3.99904,2500.6,2500.3,19.79]
[1725286775175,7.99821,2500.6,2500.3,19.79]
[1725286775541,3.99928,2500.5,2500.3,19.79]
[1725286775875,3.99904,2500.6,2500.3,19.79]
[1725286776076,0.08974214,2500.7,2500.4,22.79]
[1725286776282,3.99912,2500.6,2500.4,22.79]
[1725286776578,7.99825,2500.6,2500.4,22.79]
[1725286776779,7.9984,2500.5,2500.4,22.79]
[1725286777370,3.9992,2500.5,2500.4,22.79]
[1725286778703,3.99812,2501.2,2500.5,3.99918]
[1725286778855,3.99848,2501.0,2500.6,3.0]
[1725286779055,7.99699,2501.0,2500.4,29.24118]
[1725286779384,7.99699,2501.0,2500.4,33.24043]
[1725286779385,4.08822214,2501.0,2500.4,33.24043]
[1725286779554,4.08822214,2501.0,2500.4,29.24115]
[1725286779760,3.99756,2501.6,2501.1,3.99809]
[1725286779970,4.08712214,2501.7,2501.1,3.99809]
[1725286780179,4.89555735,2501.7,2501.2,6.99805]
[1725286780583,4.89555735,2501.7,2501.2,3.0]
[1725286780766,4.89555735,2501.7,2501.2,6.99806]
[1725286780977,4.80581521,2501.7,2501.2,7.07801448]
[1725286781181,3.99738,2501.7,2501.2,3.0]
[1725286781378,4.08718214,2501.6,2501.1,3.0]
[1725286781684,3.99762,2501.5,2501.1,3.0]
[1725286781889,3.99793,2501.3,2501.0,3.0]
[1725286782657,7.99594,2501.3,2501.0,3.0]
[1725286782863,3.99818,2501.2,2501.0,3.0]
[1725286783568,7.99595,2501.3,2501.0,3.0]
[1725286783985,3.99772,2501.5,2501.0,6.99839]
[1725286784170,3.99772,2501.5,2501.0,10.01839]
[1725286784502,3.9977,2501.5,2501.0,10.01839]
[1725286784799,3.99745,2501.6,2501.1,4.0781806]
[1725286785021,0.08974214,2501.8,2501.1,4.0781806]
[1725286785022,0.08974214,2501.8,2501.1,26.33236491]
[1725286785203,3.99719,2501.8,2501.3,3.99784]
[1725286785666,3.99719,2501.8,2501.4,3.0]
[1725286785867,0.08974214,2501.9,2501.4,6.99775]
[1725286786076,3.99621,2502.4,2501.8,3.99697]
[1725286786287,3.99621,2502.4,2501.9,3.0]
[1725286786457,4.395831,2502.4,2501.9,3.0]
[1725286786659,8.392081,2502.4,2501.9,3.0]
[1725286786899,3.99634,2502.3,2501.9,3.0]
[1725286787679,0.399621,2502.4,2502.0,0.0799341]
[1725286787910,3.99625,2502.4,2501.9,7.07687696]
[1725286788215,3.99577,2502.7,2502.1,3.99651]
[1725286788510,3.99577,2502.7,2502.2,3.0]
[1725286789331,3.99601,2502.5,2502.1,3.0]
[1725286789640,3.99601,2502.5,2502.1,3.07992226]
[1725286789835,3.99577,2502.7,2502.1,3.07992226]
[1725286790201,7.99155,2502.7,2502.1,3.07992226]
[1725286790395,9.0223623,2502.7,2502.1,3.07992226]
[1725286790594,8.93262016,2502.7,2502.1,3.07992226]
[1725286790848,3.99577,2502.7,2502.2,0.55]
[1725286791009,3.99584,2502.6,2502.2,0.55]
[1725286791402,4.08588214,2502.5,2502.1,3.0]
[1725286791700,3.99613,2502.5,2502.1,3.0]
[1725286792434,0.40855121,2502.6,2502.1,3.0]
[1725286792635,3.99601,2502.5,2502.1,3.0]
[1725286792804,4.08555214,2502.7,2502.1,3.0]
[1725286793007,3.99596,2502.6,2502.1,3.0]
[1725286793728,3.99603,2502.5,2502.1,3.0]
[1725286793919,3.99596,2502.6,2502.1,22.79]
[1725286794122,3.99594,2502.6,2502.2,0.07992129]
[1725286794741,7.99131,2502.8,2502.2,2.07992129]
[1725286795109,3.99563,2502.8,2502.2,6.07638129]
[1725286795451,3.99563,2502.8,2502.3,3.0]
[1725286795601,3.99563,2502.8,2502.3,3.07991654]
[1725286796783,3.99562,2502.8,2502.3,3.07991654]
[1725286798462,3.99593,2502.6,2502.3,3.0]
[1725286798775,3.99638,2502.3,2502.2,3.0]
[1725286799362,3.99605,2502.5,2502.2,3.0]
[1725286799659,3.99586,2502.6,2502.2,3.0]
[1725286799875,3.99569,2502.7,2502.2,22.86991846]
[1725286800099,3.99569,2502.7,2502.3,2.3278]
[1725286800293,3.99592,2502.6,2502.2,22.79]
[1725286800594,3.99626,2502.4,2502.2,22.79]
[1725286800801,3.99609,2502.5,2502.2,22.79]
[1725286801294,7.99222,2502.5,2502.2,22.79]
[1725286801501,3.99618,2502.4,2502.2,22.79]
[1725286802283,7.99222,2502.5,2502.2,22.79]
[1725286802593,3.99577,2502.7,2502.2,22.79]
[1725286802796,3.99576,2502.7,2502.3,0.07991843]
[1725286803010,3.99512,2503.1,2502.3,23.86613843]
[1725286803159,3.99545,2502.9,2502.4,29.12923556]
[1725286803349,3.99545,2502.9,2502.5,0.079912]
[1725286803581,3.99545,2502.9,2502.4,29.12923556]
[1725286803882,3.99545,2502.9,2502.5,0.07991229]
[1725286804089,3.99504,2503.2,2502.5,29.58594108]
[1725286804283,3.99545,2502.9,2502.6,3.0]
[1725286804483,0.08974214,2502.8,2502.6,3.0]
[1725286804725,3.99568,2502.7,2502.6,3.0]
[1725286804925,3.99561,2502.8,2502.6,3.0]
[1725286806124,3.9956,2502.8,2502.6,3.0]
[1725286806325,7.99124,2502.8,2502.6,3.0]
[1725286806529,3.9956,2502.8,2502.6,3.0]
[1725286809234,3.9951,2503.1,2502.6,6.32972]
[1725286809388,7.98986,2503.2,2502.7,3.07990358]
[1725286809594,4.80285021,2503.2,2502.7,3.07990358]
[1725286809810,3.99505,2503.1,2502.7,3.07990358]
[1725286810098,3.99505,2503.1,2502.8,3.0]
[1725286810286,3.99505,2503.1,2502.7,0.07990358]
[1725286814472,3.99465,2503.4,2502.7,0.07990358]
[1725286814767,7.9899,2503.2,2502.7,19.86990358]
[1725286814967,3.9949,2503.2,2502.8,3.0]
[1725286815130,3.99511,2503.1,2502.8,3.0]
[1725286817639,3.99521,2503.0,2502.8,3.0]
[1725286818186,7.99057,2503.0,2502.8,3.0]
[1725286818548,3.99521,2503.0,2502.8,3.0]
[1725286820429,3.99532,2503.0,2502.8,3.0]
[1725286821035,7.99018,2503.1,2502.8,3.0]
[1725286821284,3.99504,2503.1,2502.8,5.51239]
[1725286821458,3.99522,2503.0,2502.8,5.51239]
[1725286821654,3.99522,2503.0,2502.8,3.0]
[1725286822049,7.99022,2503.1,2502.8,3.0]
[1725286822674,3.99521,2503.0,2502.8,3.0]
[1725286823091,12.07582214,2502.9,2502.8,3.0]
[1725286823636,8.08046214,2502.9,2502.8,3.0]
[1725286824407,3.99536,2502.9,2502.8,3.0]
[1725286825292,3.99498,2503.2,2502.8,3.0]
[1725286825437,3.99498,2503.2,2502.9,0.699554]
[1725286825783,7.98996,2503.2,2502.9,0.699554]
[1725286825955,3.99498,2503.2,2502.9,0.699554]
[1725286826143,3.99506,2503.1,2502.9,0.699554]
[1725286826339,3.99506,2503.1,2502.8,3.07990161]
[1725286826539,3.99498,2503.2,2502.8,3.07990161]
[1725286826774,3.99508,2503.1,2502.8,3.07990161]
[1725286826988,3.99489,2503.2,2502.8,3.07990161]
[1725286827277,7.98988,2503.2,2502.8,3.07990161]
[1725286827491,0.08974214,2503.5,2502.8,3.07990161]
[1725286827492,3.99466,2503.4,2502.9,7.81045885]
[1725286827658,3.99438,2503.6,2503.1,3.99502]
[1725286827873,3.99438,2503.6,2503.2,4.07476633]
[1725286828190,3.99436,2503.6,2503.3,3.0]
[1725286828483,3.99436,2503.6,2503.3,0.07988635]
[1725286829555,3.99436,2503.6,2503.2,0.07988636]
[1725286829763,3.99436,2503.6,2503.2,1.48681212]
[1725286829966,3.99436,2503.6,2503.3,0.07988637]
[1725286830229,3.99411,2503.7,2503.3,19.79]
[1725286830506,3.99411,2503.7,2503.4,3.0]
[1725286830507,3.99427,2503.6,2503.4,3.0]
[1725286832165,7.98834,2503.7,2503.4,3.0]
[1725286832369,7.98828,2503.7,2503.4,5.30470142]
[1725286832967,3.99411,2503.7,2503.4,5.30470142]
[1725286833174,3.99425,2503.6,2503.4,5.30470142]
[1725286833483,3.99411,2503.7,2503.5,2.4781]
[1725286833841,7.98832,2503.7,2503.5,3.1565095]
[1725286833967,3.99411,2503.7,2503.6,3.0]
[1725286834162,3.99411,2503.7,2503.5,2.4781]
[1725286834590,3.99394,2503.8,2503.5,2.4781]
[1725286835096,8.30684427,2504.2,2503.5,2.4781]
[1725286835097,3.9934,2504.2,2503.6,25.86401173]
[1725286835332,3.9933,2504.2,2503.7,6.99407]
[1725286835627,7.98669,2504.2,2503.8,23.22639517]
[1725286835775,3.99348,2504.1,2503.9,3.0]
[1725286836445,8.07696214,2504.0,2503.9,3.0]
[1725286838006,12.07057214,2504.0,2503.9,3.0]
[1725286838687,8.07696214,2504.0,2503.9,3.0]
[1725286838892,7.98832,2503.7,2503.4,3.0]
[1725286839093,3.99415,2503.7,2503.5,2.479]
[1725286839292,3.99384,2503.9,2503.5,2.479]
[1725286839529,3.99384,2503.9,2503.7,2.2656]
[1725286839735,7.98772,2503.9,2503.7,5.2656]
[1725286840035,0.08974214,2504.1,2503.7,5.2656]
[1725286840036,3.99361,2504.0,2503.7,5.2656]
[1725286840258,0.08974214,2504.2,2503.8,0.62928329]
[1725286840259,3.99342,2504.2,2503.8,0.62928329]
[1725286840532,3.99342,2504.2,2503.8,3.62928329]
[1725286840735,3.99345,2504.1,2503.8,3.62928329]
[1725286840889,3.99345,2504.1,2503.8,3.0]
[1725286841095,3.99376,2503.9,2503.7,3.0]
[1725286841289,3.99392,2503.8,2503.5,3.0]
[1725286841495,4.08346214,2504.0,2503.5,5.826362]
[1725286841840,3.99424,2503.7,2503.5,3.0]
[1725286842141,3.99425,2503.6,2503.4,5.398]
[1725286842323,3.99425,2503.6,2503.4,8.3578]
[1725286842492,3.99409,2503.7,2503.4,8.3578]
[1725286843552,3.99396,2503.8,2503.4,8.3578]
[1725286843708,7.98804,2503.8,2503.5,2.81478]
[1725286843904,3.9941,2503.7,2503.6,3.0]
[1725286844139,3.9941,2503.7,2503.4,8.3578]
[1725286844322,0.08974214,2503.9,2503.4,8.3578]
[1725286844323,3.99393,2503.8,2503.4,8.3578]
[1725286844535,3.99393,2503.8,2503.4,28.1478]
[1725286844853,3.99393,2503.8,2503.5,3.214249]
[1725286845058,3.99393,2503.8,2503.6,3.0]
[1725286845348,3.99408,2503.7,2503.6,3.0]
[1725286845908,3.99408,2503.7,2503.5,3.0]
[1725286846140,3.99424,2503.6,2503.5,3.0]
[1725286846312,7.98848,2503.6,2503.5,3.0]
[1725286849532,3.99403,2503.8,2503.5,5.0]
[1725286849734,4.31355427,2504.3,2503.5,5.0]
[1725286849735,3.99373,2504.0,2503.6,4.8673]
[1725286849940,3.9937,2504.0,2503.7,3.0]
[1725286850147,3.9937,2504.0,2503.7,4.69415637]
[1725286850449,3.99349,2504.1,2503.7,24.48415637]
[1725286850602,3.99338,2504.2,2503.7,24.48415637]
[1725286850603,7.98679,2504.2,2503.8,3.41443699]
[1725286850810,3.99338,2504.2,2503.9,3.0]
[1725286851015,3.99347,2504.1,2503.9,3.0]
[1725286852761,3.99361,2504.0,2503.9,3.0]
[1725286852960,7.98722,2504.0,2503.9,3.0]
[1725286853145,7.98752,2503.9,2503.8,3.0]
[1725286854469,8.07726214,2503.9,2503.8,3.0]
[1725286856073,9.28435035,2503.9,2503.8,3.0]
[1725286856393,2.3064,2503.4,2502.6,2.4531]
[1725286856694,3.99568,2502.7,2502.6,2.4531]
[1725286857280,7.991,2502.9,2502.6,2.4531]
[1725286857491,3.99559,2502.8,2502.6,2.4531]
[1725286857845,3.99559,2502.8,2502.5,0.06956003]
[1725286857846,3.99584,2502.6,2502.5,0.06956003]
[1725286858184,3.9957,2502.7,2502.4,2.0]
[1725286858395,3.99545,2502.9,2502.4,2.0]
[1725286858555,7.99096,2502.9,2502.4,2.0]
[1725286858759,3.99553,2502.8,2502.4,2.0]
[1725286858958,3.99616,2502.4,2502.3,2.4531]
[1725286859161,3.99632,2502.3,2502.2,0.06959904]
[1725286859494,3.99632,2502.3,2502.0,4.4118]
[1725286859641,7.99242,2502.4,2502.0,4.4118]
[1725286860082,3.99632,2502.3,2502.0,2.4118]
[1725286860268,3.99673,2502.1,2501.9,4.05961012]
[1725286860483,3.9968,2502.0,2501.9,3.99]
[1725286862056,3.99744,2501.6,2501.5,22.0777]
[1725286862241,3.99744,2501.6,2501.5,19.79]
[1725286862450,3.99643,2502.3,2501.3,19.79]
[1725286862451,3.99776,2501.4,2501.3,19.79]
[1725286862646,7.99508,2501.6,2501.3,19.79]
[1725286862953,3.99776,2501.4,2501.3,19.79]
[1725286864059,3.99776,2501.4,2501.3,22.79]
[1725286864482,7.99507,2501.6,2501.3,22.79]
[1725286864682,1.64496265,2502.8,2501.4,5.07995041]
[1725286864683,3.99721,2501.8,2501.4,5.07995041]
[1725286864990,3.99667,2502.1,2501.6,2.4433]
[1725286865190,3.9968,2502.0,2501.6,5.4433]
[1725286865400,3.9968,2502.0,2501.6,7.05013433]
[1725286865609,3.99658,2502.2,2501.7,2.0]
[1725286865757,3.99673,2502.1,2501.7,24.79]
[1725286865955,3.99658,2502.2,2501.7,28.80493556]
[1725286866214,3.99658,2502.2,2501.7,32.80212556]
[1725286866371,4.08599214,2502.4,2501.7,32.80212556]
[1725286866372,4.08599214,2502.4,2501.8,23.8670321]
[1725286866693,2.3348,2502.9,2502.0,2.3621]
[1725286866892,5.7556366,2503.0,2502.0,2.3621]
[1725286866893,3.99562,2502.8,2502.3,3.99631]
[1725286867099,4.08505214,2503.0,2502.5,3.99598]